[Event "Early-Titled-Tuesday-Blitz-February-13-2024"]
[Site "Chess.com"]
[Date "2024.02.13"]
[Round "2"]
[White "elchacal664"]
[Black "lluiss"]
[Result "1-0"]
[WhiteElo "2470"]
[BlackElo "2149"]
[TimeControl "180+1"]
[EndTime "8:20:28 PST"]
[Termination "elchacal664 won by resignation"]

1. e4 {[%clk 0:01:34.2]} 1... e6 {[%clk 0:02:55.2]} 2. Qe2 {[%clk 0:01:33.4]}
2... c5 {[%clk 0:02:52.2]} 3. Nc3 {[%clk 0:01:33.4]} 3... Nc6 {[%clk 0:02:51.5]}
4. g3 {[%clk 0:01:34.3]} 4... g6 {[%clk 0:02:48.5]} 5. Nf3 {[%clk 0:01:34.6]}
5... Bg7 {[%clk 0:02:48.8]} 6. Bg2 {[%clk 0:01:34.9]} 6... Nge7 {[%clk
0:02:48.9]} 7. O-O {[%clk 0:01:30.4]} 7... O-O {[%clk 0:02:48.7]} 8. d3 {[%clk
0:01:30.6]} 8... b6 {[%clk 0:02:48.7]} 9. h4 {[%clk 0:01:29.1]} 9... d5 {[%clk
0:02:48.6]} 10. h5 {[%clk 0:01:28.7]} 10... Ba6 {[%clk 0:02:39.8]} 11. Bg5
{[%clk 0:01:23.6]} 11... Qd7 {[%clk 0:02:31.9]} 12. hxg6 {[%clk 0:01:19.2]}
12... hxg6 {[%clk 0:02:31]} 13. Rfe1 {[%clk 0:01:15.2]} 13... Rfe8 {[%clk
0:02:24.4]} 14. Rad1 {[%clk 0:01:13.4]} 14... Nd4 {[%clk 0:02:15.7]} 15. Nxd4
{[%clk 0:01:09.4]} 15... cxd4 {[%clk 0:02:16.6]} 16. Nb1 {[%clk 0:01:08.5]}
16... dxe4 {[%clk 0:02:05]} 17. Qxe4 {[%clk 0:01:07.9]} 17... Rab8 {[%clk
0:02:02.6]} 18. Na3 {[%clk 0:01:06.1]} 18... Bb7 {[%clk 0:02:01.7]} 19. Qh4
{[%clk 0:01:01.4]} 19... Bxg2 {[%clk 0:01:59.4]} 20. Kxg2 {[%clk 0:01:01.2]}
20... Nf5 {[%clk 0:01:57.1]} 21. Qe4 {[%clk 0:00:57.6]} 21... Qb7 {[%clk
0:01:50.3]} 22. Qxb7 {[%clk 0:00:55.7]} 22... Rxb7 {[%clk 0:01:49.9]} 23. Nc4
{[%clk 0:00:45.3]} 23... Rc7 {[%clk 0:01:42.5]} 24. Bf4 {[%clk 0:00:44]} 24...
Rc6 {[%clk 0:01:42.3]} 25. Be5 {[%clk 0:00:40.4]} 25... b5 {[%clk 0:01:37.1]}
26. Na3 {[%clk 0:00:40.3]} 26... a6 {[%clk 0:01:35.2]} 27. Bxg7 {[%clk
0:00:39.7]} 27... Kxg7 {[%clk 0:01:34]} 28. Re4 {[%clk 0:00:39.6]} 28... Rh8
{[%clk 0:01:20]} 29. g4 {[%clk 0:00:34.4]} 29... Nh4+ {[%clk 0:00:40.2]} 30. Kg3
{[%clk 0:00:34.6]} 30... g5 {[%clk 0:00:40.2]} 31. Rxd4 {[%clk 0:00:34.5]} 31...
Ng6 {[%clk 0:00:40.2]} 32. Rd7 {[%clk 0:00:32.3]} 32... Rh4 {[%clk 0:00:23.8]}
33. c4 {[%clk 0:00:27.2]} 33... Rxg4+ {[%clk 0:00:19.8]} 34. Kxg4 {[%clk
0:00:24.5]} 34... Ne5+ {[%clk 0:00:20.7]} 35. Kxg5 {[%clk 0:00:24.3]} 35... Nxd7
{[%clk 0:00:21.6]} 36. cxb5 {[%clk 0:00:24.3]} 36... axb5 {[%clk 0:00:21]} 37.
d4 {[%clk 0:00:24.5]} 37... b4 {[%clk 0:00:19.9]} 38. Nb5 {[%clk 0:00:24.5]}
38... Rc2 {[%clk 0:00:19.7]} 39. Rb1 {[%clk 0:00:16.6]} 39... Rxf2 {[%clk
0:00:19.1]} 40. a4 {[%clk 0:00:17.2]} 40... bxa3 {[%clk 0:00:18]} 41. bxa3
{[%clk 0:00:18.1]} 41... Rf5+ {[%clk 0:00:16.7]} 42. Kg4 {[%clk 0:00:17.1]}
42... Nf6+ {[%clk 0:00:17.6]} 43. Kg3 {[%clk 0:00:17]} 43... Nd5 {[%clk
0:00:17.9]} 44. a4 {[%clk 0:00:16.8]} 44... Rg5+ {[%clk 0:00:17.4]} 45. Kf3
{[%clk 0:00:17]} 45... Rh5 {[%clk 0:00:16.2]} 46. Ke4 {[%clk 0:00:16.9]} 46...
Rh4+ {[%clk 0:00:16]} 47. Kd3 {[%clk 0:00:17.1]} 47... Rh3+ {[%clk 0:00:15.6]}
48. Kc4 {[%clk 0:00:17.4]} 48... Nb6+ {[%clk 0:00:11.2]} 49. Kb4 {[%clk
0:00:17.4]} 49... Rh4 {[%clk 0:00:10.9]} 50. a5 {[%clk 0:00:17.6]} 50... Nd5+
{[%clk 0:00:10.6]} 51. Kc5 {[%clk 0:00:17]} 51... Rh8 {[%clk 0:00:10.2]} 52. a6
{[%clk 0:00:16.9]} 52... Ra8 {[%clk 0:00:10.6]} 53. a7 {[%clk 0:00:16.8]} 53...
Kf6 {[%clk 0:00:09.5]} 54. Kc6 {[%clk 0:00:16.9]} 54... Ke7 {[%clk 0:00:07.9]}
55. Kb7 {[%clk 0:00:17.1]} 55... Rh8 {[%clk 0:00:05.1]} 56. a8=Q {[%clk
0:00:18]} 56... Rxa8 {[%clk 0:00:04.9]} 57. Kxa8 {[%clk 0:00:18.2]} 1-0

[Event "Early-Titled-Tuesday-Blitz-February-13-2024"]
[Site "Chess.com"]
[Date "2024.02.13"]
[Round "2"]
[White "Fonsofan"]
[Black "GM_dmitrij"]
[Result "0-1"]
[WhiteElo "2674"]
[BlackElo "3056"]
[TimeControl "180+1"]
[EndTime "8:20:30 PST"]
[Termination "GM_dmitrij won on time"]

1. e4 {[%clk 0:02:54.8]} 1... c6 {[%clk 0:02:59.2]} 2. Nf3 {[%clk 0:02:53.7]}
2... d5 {[%clk 0:03:00.1]} 3. d3 {[%clk 0:02:54.2]} 3... g6 {[%clk 0:02:56.1]}
4. Qe2 {[%clk 0:02:50.9]} 4... Bg4 {[%clk 0:02:51.2]} 5. Nbd2 {[%clk 0:02:48.2]}
5... Nd7 {[%clk 0:02:41.4]} 6. g3 {[%clk 0:02:46.7]} 6... Bg7 {[%clk 0:02:40.6]}
7. Bg2 {[%clk 0:02:46.8]} 7... e6 {[%clk 0:02:40.1]} 8. O-O {[%clk 0:02:45.7]}
8... Ne7 {[%clk 0:02:40.2]} 9. c3 {[%clk 0:02:41.4]} 9... O-O {[%clk 0:02:38.7]}
10. Qe3 {[%clk 0:02:33.9]} 10... Qb6 {[%clk 0:02:36.8]} 11. Qxb6 {[%clk
0:02:09.9]} 11... axb6 {[%clk 0:02:37.7]} 12. d4 {[%clk 0:01:59.5]} 12... b5
{[%clk 0:02:30.7]} 13. Re1 {[%clk 0:01:57.7]} 13... Rfe8 {[%clk 0:02:00.7]} 14.
exd5 {[%clk 0:01:38.6]} 14... cxd5 {[%clk 0:01:57.2]} 15. Nb3 {[%clk 0:01:29.6]}
15... Nc6 {[%clk 0:01:50.1]} 16. a3 {[%clk 0:01:25.8]} 16... Nb6 {[%clk
0:01:47.5]} 17. Bf4 {[%clk 0:01:23.7]} 17... Nc4 {[%clk 0:01:46.3]} 18. Re2
{[%clk 0:01:24]} 18... f6 {[%clk 0:01:29.8]} 19. h3 {[%clk 0:01:12.8]} 19... Bf5
{[%clk 0:01:29.2]} 20. Ne1 {[%clk 0:01:13.4]} 20... g5 {[%clk 0:01:26.6]} 21.
Bc1 {[%clk 0:01:06]} 21... h5 {[%clk 0:01:25.2]} 22. Kh2 {[%clk 0:00:34.7]}
22... Kf7 {[%clk 0:01:22.5]} 23. Nd2 {[%clk 0:00:32.9]} 23... N6a5 {[%clk
0:01:05.2]} 24. Nxc4 {[%clk 0:00:23.4]} 24... bxc4 {[%clk 0:01:04.9]} 25. Be3
{[%clk 0:00:23.9]} 25... g4 {[%clk 0:00:56]} 26. Bf1 {[%clk 0:00:18.9]} 26...
Nb3 {[%clk 0:00:51.4]} 27. Rd1 {[%clk 0:00:19.1]} 27... Be4 {[%clk 0:00:52]} 28.
Bg2 {[%clk 0:00:18]} 28... f5 {[%clk 0:00:49.7]} 29. Bf4 {[%clk 0:00:17.5]}
29... b5 {[%clk 0:00:47.7]} 30. Bxe4 {[%clk 0:00:15.3]} 30... fxe4 {[%clk
0:00:48.6]} 31. Ng2 {[%clk 0:00:13.1]} 31... Bf6 {[%clk 0:00:41.9]} 32. hxg4
{[%clk 0:00:11.9]} 32... hxg4 {[%clk 0:00:40.8]} 33. Ne3 {[%clk 0:00:12.8]}
33... Rh8+ {[%clk 0:00:40]} 34. Kg2 {[%clk 0:00:13.4]} 34... Rag8 {[%clk
0:00:40.7]} 35. Rh1 {[%clk 0:00:13.2]} 35... Rxh1 {[%clk 0:00:39.1]} 36. Kxh1
{[%clk 0:00:14.1]} 36... Nc1 {[%clk 0:00:39.9]} 37. Rd2 {[%clk 0:00:11]} 37...
Nd3 {[%clk 0:00:40.5]} 38. Nc2 {[%clk 0:00:09.3]} 38... Nxb2 {[%clk 0:00:23.5]}
39. Kg2 {[%clk 0:00:08.2]} 39... Na4 {[%clk 0:00:19.4]} 40. Ne3 {[%clk
0:00:06.6]} 40... Nxc3 {[%clk 0:00:19.2]} 41. Rb2 {[%clk 0:00:07.3]} 41... Be7
{[%clk 0:00:16.1]} 42. Nc2 {[%clk 0:00:06.1]} 42... Bg5 {[%clk 0:00:09.3]} 43.
Bxg5 {[%clk 0:00:03.8]} 43... Rxg5 {[%clk 0:00:10.2]} 44. Ne3 {[%clk 0:00:03.7]}
44... Rg8 {[%clk 0:00:10]} 45. Rc2 {[%clk 0:00:03.9]} 45... Na4 {[%clk
0:00:09.4]} 46. Rc1 {[%clk 0:00:04.5]} 46... c3 {[%clk 0:00:06.7]} 47. Kf1
{[%clk 0:00:04.1]} 47... Kf6 {[%clk 0:00:06.5]} 48. Ke2 {[%clk 0:00:04.5]} 48...
Kg5 {[%clk 0:00:07.1]} 49. Rh1 {[%clk 0:00:04.7]} 49... Rc8 {[%clk 0:00:06.5]}
50. Kd1 {[%clk 0:00:04.1]} 50... Nb2+ {[%clk 0:00:06.1]} 51. Kc2 {[%clk
0:00:04.5]} 51... Nd3 {[%clk 0:00:06.8]} 52. Rh7 {[%clk 0:00:03.6]} 52... Ne1+
{[%clk 0:00:07.1]} 53. Kc1 {[%clk 0:00:02.8]} 53... c2 {[%clk 0:00:07.9]} 54.
Rh1 {[%clk 0:00:01.1]} 54... Nd3+ {[%clk 0:00:07.7]} 0-1

[Event "Early-Titled-Tuesday-Blitz-February-13-2024"]
[Site "Chess.com"]
[Date "2024.02.13"]
[Round "2"]
[White "Jamal-Jamal-Jamal"]
[Black "Chess_Gainz"]
[Result "0-1"]
[WhiteElo "2330"]
[BlackElo "2543"]
[TimeControl "180+1"]
[EndTime "8:20:33 PST"]
[Termination "Chess_Gainz won on time"]

1. e4 {[%clk 0:03:00.9]} 1... d6 {[%clk 0:02:59.7]} 2. d4 {[%clk 0:03:00]} 2...
Nf6 {[%clk 0:02:59.6]} 3. Nc3 {[%clk 0:02:59.2]} 3... Nbd7 {[%clk 0:02:58.1]} 4.
Nf3 {[%clk 0:02:55.6]} 4... e5 {[%clk 0:02:57.9]} 5. Bc4 {[%clk 0:02:49.3]} 5...
Be7 {[%clk 0:02:57.8]} 6. O-O {[%clk 0:02:48.1]} 6... c6 {[%clk 0:02:57.5]} 7.
a4 {[%clk 0:02:46.9]} 7... O-O {[%clk 0:02:56.2]} 8. h3 {[%clk 0:02:42.1]} 8...
h6 {[%clk 0:02:53.4]} 9. Re1 {[%clk 0:02:36.5]} 9... Re8 {[%clk 0:02:47]} 10. a5
{[%clk 0:02:33.4]} 10... exd4 {[%clk 0:02:38.8]} 11. Nxd4 {[%clk 0:02:30.6]}
11... Ne5 {[%clk 0:02:38.8]} 12. Bb3 {[%clk 0:02:22.9]} 12... Ng6 {[%clk
0:02:38.6]} 13. Qf3 {[%clk 0:02:14.5]} 13... a6 {[%clk 0:01:57.5]} 14. Nf5
{[%clk 0:01:53.8]} 14... Bf8 {[%clk 0:01:57.5]} 15. Be3 {[%clk 0:01:45.1]} 15...
Ne5 {[%clk 0:01:30.6]} 16. Qd1 {[%clk 0:01:10.1]} 16... Bxf5 {[%clk 0:01:27.4]}
17. exf5 {[%clk 0:01:08.5]} 17... d5 {[%clk 0:01:25.7]} 18. Ne2 {[%clk 0:00:50]}
18... Qd7 {[%clk 0:01:16.7]} 19. Ng3 {[%clk 0:00:49.3]} 19... c5 {[%clk
0:01:10.4]} 20. Ba4 {[%clk 0:00:48.4]} 20... Nc6 {[%clk 0:01:08.9]} 21. Qf3
{[%clk 0:00:39.1]} 21... Qc7 {[%clk 0:00:52.3]} 22. Bxc6 {[%clk 0:00:36.1]}
22... Qxc6 {[%clk 0:00:50]} 23. Nh5 {[%clk 0:00:35.2]} 23... Nxh5 {[%clk
0:00:43.6]} 24. Qxh5 {[%clk 0:00:36.1]} 24... Qf6 {[%clk 0:00:39.8]} 25. c3
{[%clk 0:00:34.1]} 25... Rad8 {[%clk 0:00:38.8]} 26. Bf4 {[%clk 0:00:25.9]}
26... d4 {[%clk 0:00:32.4]} 27. cxd4 {[%clk 0:00:18.9]} 27... cxd4 {[%clk
0:00:23.1]} 28. Bg3 {[%clk 0:00:13.6]} 28... Rxe1+ {[%clk 0:00:09.4]} 29. Rxe1
{[%clk 0:00:12.9]} 29... Rd5 {[%clk 0:00:09.1]} 30. Qf3 {[%clk 0:00:09.9]} 30...
Qxf5 {[%clk 0:00:06.4]} 31. Qxf5 {[%clk 0:00:08.9]} 31... Rxf5 {[%clk
0:00:07.3]} 32. Re8 {[%clk 0:00:08.7]} 32... Rd5 {[%clk 0:00:07.6]} 33. Kf1
{[%clk 0:00:07.6]} 33... g6 {[%clk 0:00:06.8]} 34. Ke2 {[%clk 0:00:07.9]} 34...
Kg7 {[%clk 0:00:06.9]} 35. Kd3 {[%clk 0:00:08.2]} 35... Bb4 {[%clk 0:00:06.5]}
36. Re4 {[%clk 0:00:06.1]} 36... Bxa5 {[%clk 0:00:05.4]} 37. Rxd4 {[%clk
0:00:05.9]} 37... Rxd4+ {[%clk 0:00:05.5]} 38. Kxd4 {[%clk 0:00:06.8]} 38...
Bb6+ {[%clk 0:00:05.6]} 39. Kd5 {[%clk 0:00:07.1]} 39... Kf6 {[%clk 0:00:04.9]}
40. Kd6 {[%clk 0:00:04.1]} 40... Bd4 {[%clk 0:00:04.8]} 41. b3 {[%clk
0:00:03.2]} 41... b5 {[%clk 0:00:02.8]} 42. Kc6 {[%clk 0:00:03.2]} 42... b4
{[%clk 0:00:02.3]} 43. Kb7 {[%clk 0:00:02.6]} 43... Bc3 {[%clk 0:00:03.2]} 44.
Kxa6 {[%clk 0:00:02.3]} 44... Kf5 {[%clk 0:00:04.1]} 45. Kb5 {[%clk 0:00:02.3]}
45... Ke4 {[%clk 0:00:04]} 46. Kc4 {[%clk 0:00:02.8]} 46... f5 {[%clk
0:00:03.7]} 47. Bd6 {[%clk 0:00:01.8]} 47... f4 {[%clk 0:00:04.2]} 48. Bxb4
{[%clk 0:00:02.1]} 48... Bd4 {[%clk 0:00:04.8]} 49. Bc3 {[%clk 0:00:02]} 49...
Bxf2 {[%clk 0:00:04.3]} 50. Bd2 {[%clk 0:00:01.8]} 50... g5 {[%clk 0:00:04]} 51.
b4 {[%clk 0:00:02.2]} 51... f3 {[%clk 0:00:04.6]} 52. gxf3+ {[%clk 0:00:01.5]}
52... Kxf3 {[%clk 0:00:05.5]} 53. b5 {[%clk 0:00:01.8]} 53... Kg2 {[%clk
0:00:05.6]} 54. h4 {[%clk 0:00:02.2]} 54... gxh4 {[%clk 0:00:03.4]} 55. Bxh6
{[%clk 0:00:01.8]} 55... Bg3 {[%clk 0:00:03.7]} 0-1

[Event "Early-Titled-Tuesday-Blitz-February-13-2024"]
[Site "Chess.com"]
[Date "2024.02.13"]
[Round "2"]
[White "SnekkerAndersen"]
[Black "ViIIagra"]
[Result "0-1"]
[WhiteElo "2639"]
[BlackElo "2958"]
[TimeControl "180+1"]
[EndTime "8:20:34 PST"]
[Termination "ViIIagra won on time"]

1. d4 {[%clk 0:03:00.9]} 1... d6 {[%clk 0:02:53.9]} 2. c4 {[%clk 0:03:01.2]}
2... Nf6 {[%clk 0:02:43.7]} 3. Nc3 {[%clk 0:02:58.9]} 3... e5 {[%clk 0:02:25.7]}
4. Nf3 {[%clk 0:02:57.7]} 4... Nbd7 {[%clk 0:02:22.9]} 5. g3 {[%clk 0:02:56.3]}
5... Be7 {[%clk 0:02:20.6]} 6. Bg2 {[%clk 0:02:56.5]} 6... O-O {[%clk
0:02:19.8]} 7. O-O {[%clk 0:02:56.8]} 7... c6 {[%clk 0:02:20.3]} 8. e4 {[%clk
0:02:53.9]} 8... b6 {[%clk 0:02:19.4]} 9. d5 {[%clk 0:02:53.9]} 9... Bb7 {[%clk
0:02:11.6]} 10. Re1 {[%clk 0:02:46.5]} 10... a6 {[%clk 0:02:08.4]} 11. a4 {[%clk
0:02:43.1]} 11... Rc8 {[%clk 0:02:05.6]} 12. h3 {[%clk 0:02:38.4]} 12... cxd5
{[%clk 0:01:59.2]} 13. cxd5 {[%clk 0:02:37.2]} 13... Nc5 {[%clk 0:01:58.6]} 14.
b4 {[%clk 0:02:22.1]} 14... Ncd7 {[%clk 0:01:54.2]} 15. Qd3 {[%clk 0:02:13.6]}
15... Qc7 {[%clk 0:01:53.2]} 16. Bd2 {[%clk 0:02:08.7]} 16... Qc4 {[%clk
0:01:53.7]} 17. Bf1 {[%clk 0:01:20.1]} 17... Qxd3 {[%clk 0:01:14.2]} 18. Bxd3
{[%clk 0:01:21]} 18... Rc7 {[%clk 0:01:15]} 19. Rec1 {[%clk 0:01:15]} 19... Rfc8
{[%clk 0:01:15.6]} 20. Ne2 {[%clk 0:01:15.3]} 20... Ne8 {[%clk 0:01:14.1]} 21.
Rxc7 {[%clk 0:01:12.8]} 21... Rxc7 {[%clk 0:01:15]} 22. Rc1 {[%clk 0:01:13]}
22... g6 {[%clk 0:01:15.5]} 23. Rxc7 {[%clk 0:01:07]} 23... Nxc7 {[%clk
0:01:16.4]} 24. Nc1 {[%clk 0:01:07.3]} 24... f5 {[%clk 0:01:06.8]} 25. exf5
{[%clk 0:00:49.2]} 25... Bxd5 {[%clk 0:01:05.2]} 26. Ng5 {[%clk 0:00:35]} 26...
Bxg5 {[%clk 0:00:37.1]} 27. Bxg5 {[%clk 0:00:34]} 27... e4 {[%clk 0:00:37.8]}
28. Bc2 {[%clk 0:00:28.1]} 28... gxf5 {[%clk 0:00:38.1]} 29. Ne2 {[%clk
0:00:28.6]} 29... Ne6 {[%clk 0:00:36.6]} 30. Be3 {[%clk 0:00:28.2]} 30... Bc4
{[%clk 0:00:34.9]} 31. Nd4 {[%clk 0:00:24.5]} 31... Nxd4 {[%clk 0:00:34.8]} 32.
Bxd4 {[%clk 0:00:25.4]} 32... Kf7 {[%clk 0:00:35.3]} 33. f3 {[%clk 0:00:24.6]}
33... d5 {[%clk 0:00:35.2]} 34. Kf2 {[%clk 0:00:24.7]} 34... Ke6 {[%clk
0:00:35.7]} 35. Ke3 {[%clk 0:00:23.8]} 35... b5 {[%clk 0:00:36.3]} 36. a5 {[%clk
0:00:22.4]} 36... Nb8 {[%clk 0:00:35.6]} 37. g4 {[%clk 0:00:20.5]} 37... fxg4
{[%clk 0:00:34.8]} 38. hxg4 {[%clk 0:00:20.4]} 38... Nc6 {[%clk 0:00:33.2]} 39.
fxe4 {[%clk 0:00:17.7]} 39... Nxb4 {[%clk 0:00:27.9]} 40. exd5+ {[%clk
0:00:18.1]} 40... Nxd5+ {[%clk 0:00:27]} 41. Kf3 {[%clk 0:00:18.8]} 41... h6
{[%clk 0:00:21.9]} 42. Bf5+ {[%clk 0:00:18.5]} 42... Kd6 {[%clk 0:00:22]} 43.
Bg7 {[%clk 0:00:18.1]} 43... b4 {[%clk 0:00:21.9]} 44. Bxh6 {[%clk 0:00:18]}
44... b3 {[%clk 0:00:15.6]} 45. Bg7 {[%clk 0:00:18.1]} 45... Kc5 {[%clk
0:00:16.3]} 46. g5 {[%clk 0:00:17.2]} 46... Kb4 {[%clk 0:00:16.7]} 47. g6 {[%clk
0:00:15.8]} 47... Kxa5 {[%clk 0:00:17.2]} 48. Bd4 {[%clk 0:00:13]} 48... Kb4
{[%clk 0:00:17.7]} 49. g7 {[%clk 0:00:11.4]} 49... Nc3 {[%clk 0:00:16.4]} 50.
Ke3 {[%clk 0:00:09.2]} 50... b2 {[%clk 0:00:14.3]} 51. Kd2 {[%clk 0:00:05.6]}
51... b1=N+ {[%clk 0:00:12.5]} 52. Ke3 {[%clk 0:00:06]} 52... Na3 {[%clk
0:00:12.1]} 53. Bh7 {[%clk 0:00:02.9]} 53... Nd5+ {[%clk 0:00:11.1]} 54. Kf2
{[%clk 0:00:02.1]} 54... Ne7 {[%clk 0:00:12]} 55. Bf6 {[%clk 0:00:01.3]} 55...
Ng8 {[%clk 0:00:11.7]} 56. Bg5 {[%clk 0:00:01.1]} 56... Nb5 {[%clk 0:00:11.3]}
0-1

[Event "Early-Titled-Tuesday-Blitz-February-13-2024"]
[Site "Chess.com"]
[Date "2024.02.13"]
[Round "2"]
[White "colegiodemadrid"]
[Black "szefru"]
[Result "1-0"]
[WhiteElo "2513"]
[BlackElo "2264"]
[TimeControl "180+1"]
[EndTime "8:20:34 PST"]
[Termination "colegiodemadrid won on time"]

1. Nf3 {[%clk 0:03:00.2]} 1... Nf6 {[%clk 0:02:59.9]} 2. g3 {[%clk 0:02:59.9]}
2... g6 {[%clk 0:03:00.4]} 3. Bg2 {[%clk 0:03:00.8]} 3... Bg7 {[%clk 0:03:00.3]}
4. O-O {[%clk 0:03:01.7]} 4... d5 {[%clk 0:03:00]} 5. d4 {[%clk 0:02:58.2]} 5...
O-O {[%clk 0:02:59.9]} 6. a4 {[%clk 0:02:57.8]} 6... c6 {[%clk 0:02:56]} 7. Re1
{[%clk 0:02:55.5]} 7... Bf5 {[%clk 0:02:55.4]} 8. Nbd2 {[%clk 0:02:52.1]} 8...
Qd7 {[%clk 0:02:52.9]} 9. Nb3 {[%clk 0:02:49.9]} 9... b6 {[%clk 0:02:48.5]} 10.
a5 {[%clk 0:02:46.1]} 10... Na6 {[%clk 0:02:48.5]} 11. c3 {[%clk 0:02:37]} 11...
Rfe8 {[%clk 0:02:35.7]} 12. Ne5 {[%clk 0:02:36.5]} 12... Qc7 {[%clk 0:02:35.3]}
13. Bf4 {[%clk 0:02:35.4]} 13... Qc8 {[%clk 0:02:35.7]} 14. f3 {[%clk
0:02:21.2]} 14... Nd7 {[%clk 0:02:35.1]} 15. e4 {[%clk 0:02:13.2]} 15... Be6
{[%clk 0:02:32.5]} 16. Nxd7 {[%clk 0:01:58.7]} 16... Qxd7 {[%clk 0:02:31]} 17.
Bf1 {[%clk 0:01:57.2]} 17... Nc7 {[%clk 0:02:27.4]} 18. Qc2 {[%clk 0:01:49.1]}
18... Rec8 {[%clk 0:02:22.4]} 19. h4 {[%clk 0:01:42.4]} 19... Bh3 {[%clk
0:02:19.4]} 20. Bd3 {[%clk 0:01:40.2]} 20... Ne6 {[%clk 0:02:14.9]} 21. Be3
{[%clk 0:01:38.2]} 21... c5 {[%clk 0:02:09]} 22. exd5 {[%clk 0:01:38.3]} 22...
Qd6 {[%clk 0:01:40.2]} 23. Bf2 {[%clk 0:01:31.9]} 23... Nf8 {[%clk 0:01:27.6]}
24. dxc5 {[%clk 0:01:27.5]} 24... bxc5 {[%clk 0:01:27.4]} 25. Bc4 {[%clk
0:01:25.3]} 25... Nd7 {[%clk 0:01:24.8]} 26. Kh2 {[%clk 0:01:24.1]} 26... Ne5
{[%clk 0:01:20.2]} 27. Be2 {[%clk 0:01:19.5]} 27... Bf5 {[%clk 0:01:19.7]} 28.
Qd2 {[%clk 0:01:14.4]} 28... c4 {[%clk 0:01:09.7]} 29. Nd4 {[%clk 0:01:06.5]}
29... Qxd5 {[%clk 0:01:09.8]} 30. Qe3 {[%clk 0:01:01.1]} 30... Bd3 {[%clk
0:01:09.2]} 31. Bd1 {[%clk 0:00:59.2]} 31... e6 {[%clk 0:01:05.2]} 32. Kg1
{[%clk 0:00:45.5]} 32... Nc6 {[%clk 0:01:03.6]} 33. Nxc6 {[%clk 0:00:44.1]}
33... Qxc6 {[%clk 0:01:04]} 34. f4 {[%clk 0:00:43.3]} 34... Qb5 {[%clk
0:01:03.7]} 35. Ra2 {[%clk 0:00:40.8]} 35... Rd8 {[%clk 0:00:42.1]} 36. Bf3
{[%clk 0:00:40.2]} 36... Rac8 {[%clk 0:00:38]} 37. Qxa7 {[%clk 0:00:39.4]} 37...
Qb3 {[%clk 0:00:38.2]} 38. Rea1 {[%clk 0:00:39.4]} 38... e5 {[%clk 0:00:31]} 39.
fxe5 {[%clk 0:00:35.3]} 39... Bxe5 {[%clk 0:00:29.8]} 40. Qe3 {[%clk 0:00:35.9]}
40... Bd6 {[%clk 0:00:25.6]} 41. Qc1 {[%clk 0:00:30.5]} 41... Qb8 {[%clk
0:00:19.9]} 42. Kg2 {[%clk 0:00:29.3]} 42... Re8 {[%clk 0:00:16.7]} 43. a6
{[%clk 0:00:29.2]} 43... Be4 {[%clk 0:00:11.5]} 44. Qd1 {[%clk 0:00:28.3]} 44...
Bc7 {[%clk 0:00:08.3]} 45. a7 {[%clk 0:00:28.7]} 45... Qa8 {[%clk 0:00:08.6]}
46. Bxe4 {[%clk 0:00:28.6]} 46... Rxe4 {[%clk 0:00:08.8]} 47. Qf3 {[%clk
0:00:29.2]} 47... f5 {[%clk 0:00:05.3]} 48. Ra6 {[%clk 0:00:28.7]} 48... Bd8
{[%clk 0:00:02.6]} 49. h5 {[%clk 0:00:28.9]} 49... Kg7 {[%clk 0:00:01.4]} 50.
hxg6 {[%clk 0:00:27.7]} 50... hxg6 {[%clk 0:00:02.3]} 51. Rh1 {[%clk 0:00:25.2]}
51... Bf6 {[%clk 0:00:02.1]} 52. Rd1 {[%clk 0:00:14.8]} 52... Rc7 {[%clk
0:00:01.7]} 53. Rdd6 {[%clk 0:00:14.8]} 1-0

[Event "Early-Titled-Tuesday-Blitz-February-13-2024"]
[Site "Chess.com"]
[Date "2024.02.13"]
[Round "2"]
[White "yaguigor"]
[Black "tylityli"]
[Result "0-1"]
[WhiteElo "2707"]
[BlackElo "2293"]
[TimeControl "180+1"]
[EndTime "8:20:36 PST"]
[Termination "tylityli won on time"]

1. Nf3 {[%clk 0:03:00.9]} 1... Nf6 {[%clk 0:02:59.5]} 2. c4 {[%clk 0:02:58.2]}
2... c5 {[%clk 0:02:58.8]} 3. Nc3 {[%clk 0:02:57.4]} 3... d5 {[%clk 0:02:58.5]}
4. cxd5 {[%clk 0:02:56.5]} 4... Nxd5 {[%clk 0:02:59.4]} 5. e4 {[%clk 0:02:53.9]}
5... Nc7 {[%clk 0:02:58.1]} 6. d4 {[%clk 0:02:44.1]} 6... cxd4 {[%clk
0:02:57.2]} 7. Nxd4 {[%clk 0:02:43.8]} 7... e5 {[%clk 0:02:50.3]} 8. Ndb5 {[%clk
0:02:36.3]} 8... Qxd1+ {[%clk 0:02:45.8]} 9. Kxd1 {[%clk 0:02:35.2]} 9... Nxb5
{[%clk 0:02:46]} 10. Nxb5 {[%clk 0:02:33.8]} 10... Na6 {[%clk 0:02:46]} 11. Bc4
{[%clk 0:02:31.8]} 11... Bc5 {[%clk 0:02:26.2]} 12. Ke2 {[%clk 0:02:29.7]} 12...
O-O {[%clk 0:02:24.9]} 13. Rd1 {[%clk 0:02:19.1]} 13... Re8 {[%clk 0:01:59.1]}
14. Nd6 {[%clk 0:01:41.7]} 14... Bxd6 {[%clk 0:01:52.2]} 15. Rxd6 {[%clk
0:01:42.6]} 15... Nc5 {[%clk 0:01:42.6]} 16. Bb5 {[%clk 0:01:33.1]} 16... Nxe4
{[%clk 0:01:14.3]} 17. Rd1 {[%clk 0:01:31.9]} 17... Rf8 {[%clk 0:01:11.5]} 18.
Be3 {[%clk 0:01:22.8]} 18... a6 {[%clk 0:01:09.6]} 19. Bc4 {[%clk 0:01:19.5]}
19... Bf5 {[%clk 0:01:05]} 20. Bd5 {[%clk 0:01:14.4]} 20... Rac8 {[%clk
0:00:57]} 21. Bxb7 {[%clk 0:01:11.3]} 21... Rc2+ {[%clk 0:00:54.7]} 22. Kf1
{[%clk 0:01:11.1]} 22... Rxb2 {[%clk 0:00:52.5]} 23. Bxa6 {[%clk 0:01:08.3]}
23... h6 {[%clk 0:00:46]} 24. Bc4 {[%clk 0:00:54.4]} 24... Rc8 {[%clk
0:00:35.4]} 25. Bb3 {[%clk 0:00:53.4]} 25... Nc5 {[%clk 0:00:31.8]} 26. Bxc5
{[%clk 0:00:33.5]} 26... Rxc5 {[%clk 0:00:31.2]} 27. Rd5 {[%clk 0:00:29.5]}
27... Rxd5 {[%clk 0:00:21.3]} 28. Bxd5 {[%clk 0:00:30.4]} 28... Bd3+ {[%clk
0:00:21.6]} 29. Kg1 {[%clk 0:00:21.7]} 29... Rb5 {[%clk 0:00:17.6]} 30. Bc6
{[%clk 0:00:19]} 30... Ra5 {[%clk 0:00:15.6]} 31. a4 {[%clk 0:00:17.8]} 31...
Bc2 {[%clk 0:00:12.9]} 32. f3 {[%clk 0:00:16]} 32... Kf8 {[%clk 0:00:12.8]} 33.
Rc1 {[%clk 0:00:13.9]} 33... Bxa4 {[%clk 0:00:10.4]} 34. Ra1 {[%clk 0:00:13.7]}
34... Bxc6 {[%clk 0:00:07.4]} 35. Rxa5 {[%clk 0:00:13.9]} 35... f6 {[%clk
0:00:08]} 36. Ra7 {[%clk 0:00:13.6]} 36... Be8 {[%clk 0:00:06.5]} 37. Kf2 {[%clk
0:00:13.6]} 37... Bf7 {[%clk 0:00:05.8]} 38. Ke3 {[%clk 0:00:13.3]} 38... g6
{[%clk 0:00:06.3]} 39. g3 {[%clk 0:00:11.3]} 39... Kg7 {[%clk 0:00:06.6]} 40. h4
{[%clk 0:00:10.9]} 40... f5 {[%clk 0:00:06.9]} 41. f4 {[%clk 0:00:09.5]} 41...
exf4+ {[%clk 0:00:06]} 42. gxf4 {[%clk 0:00:09]} 42... Kf6 {[%clk 0:00:05.6]}
43. Ra6+ {[%clk 0:00:08.6]} 43... Be6 {[%clk 0:00:06]} 44. Kd4 {[%clk
0:00:08.8]} 44... Kf7 {[%clk 0:00:03.3]} 45. Ke5 {[%clk 0:00:08.8]} 45... Bd7
{[%clk 0:00:02.6]} 46. Ra7 {[%clk 0:00:07.9]} 46... Ke7 {[%clk 0:00:03.1]} 47.
Rxd7+ {[%clk 0:00:06.9]} 47... Kxd7 {[%clk 0:00:03]} 48. Kf6 {[%clk 0:00:07.3]}
48... g5 {[%clk 0:00:02.8]} 49. fxg5 {[%clk 0:00:04.3]} 49... hxg5 {[%clk
0:00:02.3]} 0-1